[Event "Lune-dì-rapid!"]
[Site "Chess.com"]
[Date "2020.04.13"]
[Round "4"]
[White "SanSecondoPR"]
[Black "sergiodone"]
[Result "0-1"]
[WhiteElo "1124"]
[BlackElo "1200"]
[TimeControl "720+3"]
[EndTime "7:13:37 PDT"]
[Termination "sergiodone ha vinto per abbandono"]

1. e4 {[%clk 0:12:02.9]} 1... c5 {[%clk 0:11:52]} 2. Bc4 {[%clk 0:12:01.2]} 2...
e6 {[%clk 0:11:53.1]} 3. Nf3 {[%clk 0:12:00.2]} 3... d6 {[%clk 0:11:54.9]} 4.
Nc3 {[%clk 0:11:57.2]} 4... a6 {[%clk 0:11:54.9]} 5. a3 {[%clk 0:11:53.1]} 5...
Be7 {[%clk 0:11:56.6]} 6. d4 {[%clk 0:11:53.2]} 6... cxd4 {[%clk 0:11:56.7]} 7.
Nxd4 {[%clk 0:11:52.9]} 7... Qc7 {[%clk 0:11:56.1]} 8. Ba2 {[%clk 0:11:51.4]}
8... b5 {[%clk 0:11:55.6]} 9. b4 {[%clk 0:11:46.2]} 9... Qxc3+ {[%clk
0:11:53.6]} 10. Bd2 {[%clk 0:11:29.5]} 10... Qxd4 {[%clk 0:11:55.1]} 11. O-O
{[%clk 0:11:28.8]} 11... Qb6 {[%clk 0:11:54]} 12. Qg4 {[%clk 0:11:23.5]} 12...
Nf6 {[%clk 0:11:46.3]} 13. Qxg7 {[%clk 0:11:23]} 13... Rg8 {[%clk 0:11:47.2]}
14. Qh6 {[%clk 0:11:21.2]} 14... Nbd7 {[%clk 0:11:36.1]} 15. Be3 {[%clk
0:11:19.3]} 15... Qc7 {[%clk 0:11:28.5]} 16. c4 {[%clk 0:11:14.6]} 16... Ng4
{[%clk 0:11:25.7]} 17. Qxh7 {[%clk 0:11:08.7]} 17... Ndf6 {[%clk 0:11:26.4]} 18.
Qh3 {[%clk 0:10:54.3]} 18... Bb7 {[%clk 0:11:21.2]} 19. c5 {[%clk 0:10:43.5]}
19... Nxe4 {[%clk 0:11:15]} 20. cxd6 {[%clk 0:10:39.7]} 20... Nxd6 {[%clk
0:11:14.9]} 21. Rac1 {[%clk 0:10:31.3]} 21... Qb8 {[%clk 0:11:11.2]} 22. Bc5
{[%clk 0:10:16.1]} 22... Nf6 {[%clk 0:09:39.7]} 23. f3 {[%clk 0:09:59]} 23...
Nc4 {[%clk 0:08:56.8]} 24. Bxe7 {[%clk 0:09:49.2]} 24... Kxe7 {[%clk 0:08:55.1]}
25. Qh4 {[%clk 0:09:36.6]} 25... Qa7+ {[%clk 0:08:47.7]} 26. Kh1 {[%clk
0:09:09.3]} 26... Bd5 {[%clk 0:08:47.6]} 27. Bb1 {[%clk 0:08:51.2]} 27... Qe3
{[%clk 0:08:43.9]} 28. Be4 {[%clk 0:08:41.7]} 28... Qg5 {[%clk 0:08:35.3]} 29.
Qf2 {[%clk 0:08:28.7]} 29... Rad8 {[%clk 0:08:03.3]} 30. Qc5+ {[%clk 0:08:25.7]}
30... Ke8 {[%clk 0:07:58.1]} 31. Rg1 {[%clk 0:08:08]} 31... Bxe4 {[%clk
0:07:49.1]} 32. fxe4 {[%clk 0:08:03.8]} 32... Qxc5 {[%clk 0:07:49.5]} 33. bxc5
{[%clk 0:08:01.5]} 33... Nxe4 {[%clk 0:07:51.1]} 0-1

[Event "Lune-dì-rapid!"]
[Site "Chess.com"]
[Date "2020.04.13"]
[Round "4"]
[White "lucatarozzi"]
[Black "ottovolante"]
[Result "1/2-1/2"]
[WhiteElo "1282"]
[BlackElo "1003"]
[TimeControl "720+3"]
[EndTime "7:15:07 PDT"]
[Termination "Partita patta per stallo"]

1. d4 {[%clk 0:12:02.9]} 1... e6 {[%clk 0:11:59.9]} 2. Nf3 {[%clk 0:12:04]} 2...
d5 {[%clk 0:11:57.2]} 3. Bf4 {[%clk 0:12:05.3]} 3... Nc6 {[%clk 0:11:57.7]} 4.
e3 {[%clk 0:12:07.3]} 4... Nf6 {[%clk 0:11:57.6]} 5. Bd3 {[%clk 0:12:09]} 5...
Nb4 {[%clk 0:11:46.6]} 6. c3 {[%clk 0:12:08.7]} 6... Nxd3+ {[%clk 0:11:48.1]} 7.
Qxd3 {[%clk 0:12:09.5]} 7... Bd7 {[%clk 0:11:45.2]} 8. Be5 {[%clk 0:12:08.6]}
8... Bc6 {[%clk 0:11:39.3]} 9. Nbd2 {[%clk 0:12:08]} 9... Bd6 {[%clk 0:11:31.6]}
10. Bxf6 {[%clk 0:12:07.6]} 10... Qxf6 {[%clk 0:11:31.7]} 11. O-O-O {[%clk
0:12:04.9]} 11... Ba4 {[%clk 0:11:20.4]} 12. b3 {[%clk 0:12:05.5]} 12... Bc6
{[%clk 0:11:16.2]} 13. b4 {[%clk 0:12:07]} 13... a6 {[%clk 0:11:14.6]} 14. a3
{[%clk 0:11:59.7]} 14... Ba4 {[%clk 0:11:13.3]} 15. Rdf1 {[%clk 0:11:59.7]}
15... h6 {[%clk 0:11:05.2]} 16. h4 {[%clk 0:11:57.3]} 16... c6 {[%clk
0:10:46.2]} 17. Ne5 {[%clk 0:11:57.8]} 17... Bxe5 {[%clk 0:10:38.7]} 18. dxe5
{[%clk 0:11:58.9]} 18... Qf5 {[%clk 0:10:33.5]} 19. Qxf5 {[%clk 0:11:53.3]}
19... exf5 {[%clk 0:10:34.1]} 20. f4 {[%clk 0:11:53.2]} 20... Bb5 {[%clk
0:10:31.8]} 21. Re1 {[%clk 0:11:50.2]} 21... Kf8 {[%clk 0:10:32.3]} 22. Nb3
{[%clk 0:11:50.5]} 22... Bc4 {[%clk 0:10:16.9]} 23. Nd4 {[%clk 0:11:50.9]} 23...
g6 {[%clk 0:10:14.6]} 24. e6 {[%clk 0:11:51.8]} 24... Ke7 {[%clk 0:10:13.9]} 25.
exf7 {[%clk 0:11:52.5]} 25... Kxf7 {[%clk 0:10:14.5]} 26. Rhg1 {[%clk
0:11:51.5]} 26... Rhe8 {[%clk 0:10:15.5]} 27. g4 {[%clk 0:11:51.9]} 27... Kf6
{[%clk 0:10:05]} 28. g5+ {[%clk 0:11:52.9]} 28... hxg5 {[%clk 0:10:05.1]} 29.
hxg5+ {[%clk 0:11:54.2]} 29... Kg7 {[%clk 0:10:01.7]} 30. Nf3 {[%clk 0:11:53.2]}
30... Bd3 {[%clk 0:09:54.2]} 31. Ne5 {[%clk 0:11:53.7]} 31... Be4 {[%clk
0:09:52.7]} 32. Rg3 {[%clk 0:11:48.2]} 32... Rh8 {[%clk 0:09:54.1]} 33. Nd7
{[%clk 0:11:41.6]} 33... Rh2 {[%clk 0:09:51.1]} 34. Nc5 {[%clk 0:11:41.4]} 34...
Rah8 {[%clk 0:09:48.9]} 35. Nxe4 {[%clk 0:11:41.1]} 35... dxe4 {[%clk
0:09:49.8]} 36. Rd1 {[%clk 0:11:40.7]} 36... Rf8 {[%clk 0:09:33.1]} 37. Rd7+
{[%clk 0:11:41.6]} 37... Rf7 {[%clk 0:09:34.1]} 38. Rxf7+ {[%clk 0:11:42]} 38...
Kxf7 {[%clk 0:09:35.3]} 39. Rg1 {[%clk 0:11:41.2]} 39... Ke6 {[%clk 0:09:34.4]}
40. Rd1 {[%clk 0:11:42.2]} 40... Ke7 {[%clk 0:09:26]} 41. Rd4 {[%clk 0:11:37.5]}
41... Ra2 {[%clk 0:09:23.8]} 42. Kb1 {[%clk 0:11:33.9]} 42... Rxa3 {[%clk
0:09:25.1]} 43. Kb2 {[%clk 0:11:36]} 43... Ra4 {[%clk 0:09:18.8]} 44. Rd1 {[%clk
0:11:37.5]} 44... c5 {[%clk 0:09:15.7]} 45. Kb3 {[%clk 0:11:39.5]} 45... b5
{[%clk 0:08:50.7]} 46. bxc5 {[%clk 0:11:37.1]} 46... Rc4 {[%clk 0:08:50.7]} 47.
Rd6 {[%clk 0:11:36.7]} 47... Rxc5 {[%clk 0:08:50]} 48. Rxg6 {[%clk 0:11:38.4]}
48... a5 {[%clk 0:08:43.1]} 49. Ra6 {[%clk 0:11:37.7]} 49... a4+ {[%clk
0:08:43.3]} 50. Kb4 {[%clk 0:11:38.1]} 50... Rc4+ {[%clk 0:08:30.7]} 51. Kxb5
{[%clk 0:11:39.8]} 51... Rxc3 {[%clk 0:08:31.8]} 52. Rxa4 {[%clk 0:11:40]} 52...
Rxe3 {[%clk 0:08:33]} 53. g6 {[%clk 0:11:39.2]} 53... Kf6 {[%clk 0:08:34.2]} 54.
Ra6+ {[%clk 0:11:40.7]} 54... Kg7 {[%clk 0:08:35.7]} 55. Kc5 {[%clk 0:11:43]}
55... Rg3 {[%clk 0:08:37.2]} 56. Kd5 {[%clk 0:11:45.4]} 56... e3 {[%clk
0:08:38.7]} 57. Ke5 {[%clk 0:11:44.8]} 57... e2 {[%clk 0:08:38.8]} 58. Ra1
{[%clk 0:11:45.5]} 58... Kxg6 {[%clk 0:08:35.6]} 59. Kd4 {[%clk 0:11:44.6]}
59... Rg2 {[%clk 0:08:31.4]} 60. Ke3 {[%clk 0:11:45.8]} 60... Rg4 {[%clk
0:08:20.6]} 61. Kf3 {[%clk 0:11:46.3]} 61... Kh5 {[%clk 0:08:13.7]} 62. Rh1+
{[%clk 0:11:46.1]} 62... Rh4 {[%clk 0:08:13.7]} 63. Re1 {[%clk 0:11:47.5]} 63...
Rh3+ {[%clk 0:08:13.4]} 64. Kg2 {[%clk 0:11:48.9]} 64... Kh4 {[%clk 0:08:11.8]}
65. Rxe2 {[%clk 0:11:48.6]} 65... Rg3+ {[%clk 0:08:12.8]} 66. Kh2 {[%clk
0:11:47.4]} 66... Kg4 {[%clk 0:08:13.4]} 67. Rf2 {[%clk 0:11:47]} 67... Rf3
{[%clk 0:08:09]} 68. Rg2+ {[%clk 0:11:45.5]} 68... Kxf4 {[%clk 0:08:06.2]} 69.
Kg1 {[%clk 0:11:46.6]} 69... Rg3 {[%clk 0:08:05.8]} 70. Kf2 {[%clk 0:11:45.8]}
70... Rxg2+ {[%clk 0:08:06.3]} 71. Kxg2 {[%clk 0:11:48]} 71... Kg4 {[%clk
0:08:08]} 72. Kf2 {[%clk 0:11:50.3]} 72... f4 {[%clk 0:08:09.8]} 73. Kg2 {[%clk
0:11:52.1]} 73... Kf5 {[%clk 0:08:09.9]} 74. Kf3 {[%clk 0:11:53.6]} 74... Kg5
{[%clk 0:08:10.9]} 75. Kg2 {[%clk 0:11:55.5]} 75... Kg4 {[%clk 0:08:12.3]} 76.
Kf2 {[%clk 0:11:57.6]} 76... f3 {[%clk 0:08:11.6]} 77. Kf1 {[%clk 0:11:58.5]}
77... Kf4 {[%clk 0:08:12.6]} 78. Kg1 {[%clk 0:11:58.6]} 78... Ke3 {[%clk
0:08:13.9]} 79. Kf1 {[%clk 0:12:00.6]} 79... f2 {[%clk 0:08:12.7]} 80. Kg2
{[%clk 0:12:02.3]} 80... Ke2 {[%clk 0:08:13.9]} 81. Kh2 {[%clk 0:12:02.9]} 81...
f1=Q {[%clk 0:08:14.4]} 82. Kg3 {[%clk 0:12:04.3]} 82... Qf3+ {[%clk 0:08:14.9]}
83. Kh2 {[%clk 0:12:06.1]} 83... Qf4+ {[%clk 0:08:11]} 84. Kg1 {[%clk
0:12:07.3]} 84... Qf2+ {[%clk 0:08:10.5]} 85. Kh1 {[%clk 0:12:09]} 85... Qf3+
{[%clk 0:08:10.4]} 86. Kg1 {[%clk 0:12:10.7]} 86... Qg3+ {[%clk 0:08:09.5]} 87.
Kh1 {[%clk 0:12:11.5]} 87... Qe1+ {[%clk 0:08:09.1]} 88. Kg2 {[%clk 0:12:13.2]}
88... Qf1+ {[%clk 0:08:09.4]} 89. Kh2 {[%clk 0:12:13.7]} 89... Kf2 {[%clk
0:08:02.9]} 1/2-1/2